fUST/lending_fUST_20250611
["ID","MTS","AMOUNT","RATE_DAILY","PERIOD"]
[365327050,1749601840947,-500.0,0.00021917,4]
[365327052,1749601840956,-500.0,0.00021917,4]
[365327054,1749601840966,-460.0,0.00021917,4]
[365327056,1749601840975,-1754.9,0.00021917,4]
[365327058,1749601840984,-795.12,0.00021917,4]
[365327060,1749601840997,-460.0,0.00021917,4]
[365327062,1749601841006,-1154.14,0.00021917,4]
[365327064,1749601841015,-197.05092487,0.00021917,4]
[365327066,1749601841025,-460.0,0.00021917,2]
[365327068,1749601841035,-608.56,0.00021917,4]
[365327070,1749601841044,-843.33,0.00021917,4]
[365327072,1749601841053,-460.0,0.00021917,4]
[365327074,1749601841063,-2182.91,0.00021917,4]
[365327076,1749601841072,-770.48,0.00021917,4]
[365327078,1749601841081,-460.0,0.00021917,4]
[365327080,1749601841090,-1610.56,0.00021917,4]
[365327082,1749601841100,-460.0,0.00021917,4]
[365327084,1749601841109,-460.0,0.00021917,4]
[365327086,1749601841120,-980.87,0.00021917,4]
[365327088,1749601841130,-460.0,0.00021917,4]
[365327090,1749601841140,-460.0,0.00021917,4]
[365327092,1749601841149,-460.0,0.00021917,4]
[365327094,1749601841158,-460.0,0.00021917,4]
[365327096,1749601841167,-1582.06,0.00021917,4]
[365327098,1749601841176,-801.08,0.00021917,4]
[365327100,1749601841186,-971.12,0.00021917,4]
[365327102,1749601841195,-1965.67,0.00021917,4]
[365327104,1749601841204,-460.0,0.00021917,4]
[365327106,1749601841213,-2017.9,0.00021917,4]
[365327108,1749601841222,-644.13,0.00021917,4]
[365327110,1749601841231,-500.0,0.00021973,2]
[365327112,1749601841240,-1541.6,0.00021989,2]
[365327114,1749601841250,-1931.37,0.00022,7]
[365327116,1749601841259,-68361.7,0.00022,7]
[365327118,1749601841268,-11858.11761888,0.00022,7]
[365327120,1749601841277,-160.0,0.00022,7]
[365327122,1749601841287,-2459.52304013,0.00022003,6]
[365327124,1749601841296,-6419.48061519,0.00022013,2]
[365327126,1749601841305,-2459.52304013,0.00022107,6]
[365327128,1749601841314,-909.34810314,0.00022134,2]
[365327130,1749601841323,-500.0,0.0002216,2]
[365327133,1749601841333,-500.0,0.00022168,2]
[365327134,1749601841342,-460.0,0.00022191,4]
[365327136,1749601841351,-777.78,0.00022191,4]
[365327138,1749601841362,-1279.38,0.00022191,4]
[365327140,1749601841371,-460.0,0.00022191,4]
[365327142,1749601841380,-460.0,0.00022191,4]
[365327144,1749601841390,-561.82,0.00022191,4]
[365327146,1749601841399,-471.87,0.00022191,4]
[365327148,1749601841408,-460.0,0.00022191,4]
[365327150,1749601841418,-460.0,0.00022191,4]
[365327152,1749601841427,-500.0,0.00022191,4]
[365327154,1749601841436,-460.0,0.00022191,4]
[365327156,1749601841446,-1754.9,0.00022191,4]
[365327158,1749601841455,-795.12,0.00022191,4]
[365327160,1749601841465,-460.0,0.00022191,4]
[365327162,1749601841475,-1154.14,0.00022191,4]
[365327165,1749601841485,-460.0,0.00022191,2]
[365327167,1749601841495,-608.56,0.00022191,4]
[365327169,1749601841504,-843.33,0.00022191,4]
[365327171,1749601841513,-460.0,0.00022191,4]
[365327173,1749601841522,-2182.91,0.00022191,4]
[365327175,1749601841531,-770.48,0.00022191,4]
[365327186,1749601841632,-280.0,0.00022191,4]
[365327188,1749601841642,-1610.56,0.00022191,4]
[365327190,1749601841652,-460.0,0.00022191,4]
[365327192,1749601841661,-460.0,0.00022191,4]
[365327194,1749601841671,-980.87,0.00022191,4]
[365327196,1749601841680,-460.0,0.00022191,4]
[365327198,1749601841690,-460.0,0.00022191,4]
[365327200,1749601841699,-260.0,0.00022191,4]
[365327202,1749601841709,-460.0,0.00022191,4]
[365327204,1749601841719,-1582.06,0.00022191,4]
[365327206,1749601841728,-801.08,0.00022191,4]
[365327209,1749601841738,-971.12,0.00022191,4]
[365327211,1749601841748,-1965.67,0.00022191,4]
[365327213,1749601841758,-460.0,0.00022191,4]
[365327214,1749601841769,-2017.9,0.00022191,4]
[365327217,1749601841779,-644.13,0.00022191,4]
[365327219,1749601841789,-166.31295545,0.000222,69]
[365327220,1749601841798,-2459.52304013,0.0002221,6]
[365327222,1749601841808,-2459.52304013,0.00022314,7]
[365327225,1749601841818,-159.45410384,0.00022329,2]
[365327226,1749601841827,-2459.52304013,0.00022417,7]
[365327228,1749601841836,-317.41,0.00022464,2]
[365327231,1749601841847,-400.0,0.00022465,4]
[365327233,1749601841858,-400.0,0.00022465,4]
[365327235,1749601841868,-400.0,0.00022465,4]
[365327237,1749601841878,-400.0,0.00022465,4]
[365327239,1749601841888,-400.0,0.00022465,4]
[365327240,1749601841897,-400.0,0.00022465,4]
[365327242,1749601841907,-460.0,0.00022465,4]
[365327244,1749601841917,-777.78,0.00022465,4]
[365327246,1749601841927,-1279.38,0.00022465,4]
[365327248,1749601841936,-460.0,0.00022465,4]
[365327250,1749601841945,-460.0,0.00022465,4]
[365327252,1749601841955,-561.82,0.00022465,4]
[365327254,1749601841964,-471.87,0.00022465,4]
[365327256,1749601841974,-383.059,0.00022465,4]
[365327258,1749601841984,-460.0,0.00022465,4]
[365327260,1749601841994,-460.0,0.00022465,4]
[365327262,1749601842003,-1754.9,0.00022465,4]
[365327264,1749601842013,-795.12,0.00022465,4]
[365327266,1749601842023,-460.0,0.00022465,4]
[365327268,1749601842032,-1154.14,0.00022465,4]
[365327270,1749601842042,-460.0,0.00022465,2]
[365327272,1749601842051,-608.56,0.00022465,4]
[365327274,1749601842062,-843.33,0.00022465,4]
[365327276,1749601842071,-460.0,0.00022465,4]
[365327278,1749601842081,-2182.91,0.00022465,4]
[365327280,1749601842090,-770.48,0.00022465,4]
[365327283,1749601842100,-1610.56,0.00022465,4]
[365327285,1749601842110,-460.0,0.00022465,4]
[365327287,1749601842121,-460.0,0.00022465,4]
[365327289,1749601842130,-980.87,0.00022465,4]
[365327291,1749601842139,-460.0,0.00022465,4]
[365327293,1749601842149,-460.0,0.00022465,4]
[365327294,1749601842159,-460.0,0.00022465,4]
[365327296,1749601842168,-1582.06,0.00022465,4]
[365327298,1749601842177,-801.08,0.00022465,4]
[365327300,1749601842186,-971.12,0.00022465,4]
[365327302,1749601842195,-1965.67,0.00022465,4]
[365327304,1749601842205,-460.0,0.00022465,4]
[365327307,1749601842214,-2017.9,0.00022465,4]
[365327309,1749601842223,-644.13,0.00022465,4]
[365327311,1749601842233,-500.0,0.00022521,2]
[365327313,1749601842244,-2459.52304013,0.00022521,7]
[365327315,1749601842253,-160.02203713,0.00022599,2]
[365327317,1749601842262,-1688.0,0.00022599,2]
[365327319,1749601842271,-5000.0,0.00022599,2]
[365327321,1749601842280,-151.0,0.00022599,2]
[365327323,1749601842290,-207.4,0.00022599,2]
[365327325,1749601842299,-2500.0,0.00022599,2]
[365327327,1749601842308,-2500.0,0.00022599,2]
[365327329,1749601842318,-1500.0,0.00022599,2]
[365327331,1749601842326,-2500.0,0.00022599,2]
[365327333,1749601842335,-1500.0,0.00022599,2]
[365327335,1749601842345,-2500.0,0.00022599,2]
[365327337,1749601842354,-1500.0,0.00022599,2]
[365327338,1749601842364,-1323.54423715,0.00022599,2]
[365327341,1749601842373,-1500.0,0.00022599,2]
[365327342,1749601842383,-1500.0,0.00022599,2]
[365327344,1749601842392,-1500.0,0.00022599,2]
[365327346,1749601842401,-1500.0,0.00022599,2]
[365327349,1749601842415,-1317.3030559,0.00022599,2]
[365327351,1749601842424,-1500.0,0.00022599,2]
[365327353,1749601842434,-431.86117909,0.00022599,2]
[365327355,1749601842443,-2459.52304013,0.00022624,7]
[365327357,1749601842452,-25705.08025029,0.000227,2]
[365327359,1749601842462,-2459.52304013,0.00022728,7]
[365327361,1749601842471,-400.0,0.00022739,4]
[365327363,1749601842480,-460.0,0.00022739,4]
[365327365,1749601842489,-777.78,0.00022739,4]
[365327367,1749601842498,-1279.38,0.00022739,4]
[365327369,1749601842508,-460.0,0.00022739,4]
[365327371,1749601842518,-460.0,0.00022739,4]
[365327373,1749601842531,-561.82,0.00022739,4]
[365327375,1749601842541,-471.87,0.00022739,4]
[365327377,1749601842551,-460.0,0.00022739,4]
[365327379,1749601842560,-460.0,0.00022739,4]
[365327381,1749601842570,-1754.9,0.00022739,4]
[365327383,1749601842579,-795.12,0.00022739,4]
[365327385,1749601842589,-460.0,0.00022739,4]
[365327387,1749601842599,-1154.14,0.00022739,4]
[365327389,1749601842608,-460.0,0.00022739,2]
[365327391,1749601842619,-608.56,0.00022739,4]
[365327393,1749601842629,-843.33,0.00022739,4]
[365327395,1749601842639,-460.0,0.00022739,4]
[365327397,1749601842649,-2182.91,0.00022739,4]
[365327399,1749601842659,-770.48,0.00022739,4]
[365327401,1749601842669,-1610.56,0.00022739,4]
[365327403,1749601842678,-460.0,0.00022739,4]
[365327405,1749601842688,-460.0,0.00022739,4]
[365327407,1749601842697,-980.87,0.00022739,4]
[365327409,1749601842707,-460.0,0.00022739,4]
[365327411,1749601842718,-460.0,0.00022739,4]
[365327413,1749601842727,-460.0,0.00022739,4]
[365327415,1749601842737,-1582.06,0.00022739,4]
[365327417,1749601842747,-801.08,0.00022739,4]
[365327419,1749601842760,-971.12,0.00022739,4]
[365327421,1749601842770,-1965.67,0.00022739,4]
[365327423,1749601842780,-460.0,0.00022739,4]
[365327424,1749601842789,-2017.9,0.00022739,4]
[365327425,1749601842799,-644.13,0.00022739,4]
[365327426,1749601842808,-11858.11761888,0.00022796,2]
[365327427,1749601842817,-160.0,0.00022796,2]
[365327428,1749601842826,-160.0,0.00022796,2]
[365327429,1749601842836,-834.9046531,0.00022796,2]
[365327430,1749601842846,-160.0,0.00022796,2]
[365327431,1749601842856,-842.5625,0.00022796,2]
[365327432,1749601842866,-424.12530924,0.00022796,2]
[365327433,1749601842875,-160.0,0.00022796,2]
[365327434,1749601842885,-229.6792923,0.00022796,2]
[365327435,1749601842895,-213.1263252,0.00022796,2]
[365327436,1749601842905,-160.0,0.00022796,2]
[365327437,1749601842914,-160.0,0.00022796,2]
[365327438,1749601842923,-160.0,0.00022796,2]
[365327439,1749601842933,-160.0,0.00022796,2]
[365327440,1749601842942,-500.0,0.000228,2]
[365327441,1749601842951,-600.0,0.000228,2]
[365327442,1749601842965,-2459.52304013,0.00022831,8]
[365327444,1749601842974,-500.0,0.00022885,2]
[365327445,1749601842984,-2459.52304013,0.00022934,8]
[365327447,1749601842993,-420.0,0.00022942,2]
[365327449,1749601843003,-2055.46,0.00022945,2]
[365327451,1749601843012,-10034.71672052,0.00023,2]
[365327453,1749601843021,-400.0,0.00023013,4]
[365327455,1749601843031,-609.64014727,0.00023013,4]
[365327457,1749601843041,-777.78,0.00023013,4]
[365327459,1749601843051,-1279.38,0.00023013,4]
[365327461,1749601843060,-460.0,0.00023013,4]
[365327463,1749601843070,-460.0,0.00023013,4]
[365327465,1749601843079,-561.82,0.00023013,4]
[365327467,1749601843088,-471.87,0.00023013,4]
[365327469,1749601843098,-460.0,0.00023013,4]
[365327471,1749601843107,-460.0,0.00023013,4]
[365327473,1749601843118,-1754.9,0.00023013,4]
[365327475,1749601843127,-795.12,0.00023013,4]
[365327477,1749601843137,-460.0,0.00023013,4]
[365327479,1749601843147,-1154.14,0.00023013,4]
[365327481,1749601843157,-460.0,0.00023013,2]
[365327484,1749601843167,-608.56,0.00023013,4]
[365327487,1749601843176,-843.33,0.00023013,4]
[365327489,1749601843185,-460.0,0.00023013,4]
[365327491,1749601843195,-2182.91,0.00023013,4]
[365327493,1749601843204,-770.48,0.00023013,4]
[365327495,1749601843214,-1610.56,0.00023013,4]
[365327497,1749601843224,-460.0,0.00023013,4]
[365327499,1749601843234,-460.0,0.00023013,4]
[365327502,1749601843243,-980.87,0.00023013,4]
[365327506,1749601843253,-460.0,0.00023013,4]
[365327509,1749601843263,-460.0,0.00023013,4]
[365327512,1749601843272,-460.0,0.00023013,4]
[365327514,1749601843281,-1582.06,0.00023013,4]
[365327516,1749601843291,-801.08,0.00023013,4]
[365327518,1749601843300,-971.12,0.00023013,4]
[365327520,1749601843310,-1965.67,0.00023013,4]
[365327523,1749601843320,-460.0,0.00023013,4]
[365327524,1749601843330,-2017.9,0.00023013,4]
[365327526,1749601843339,-644.13,0.00023013,4]
[365327528,1749601843349,-364.9974737,0.00023014,2]
[365327530,1749601843360,-153.0,0.00023035,2]
[365327532,1749601843371,-153.0,0.00023035,2]
[365327534,1749601843381,-153.0,0.00023035,2]
[365327537,1749601843390,-153.0,0.00023035,2]
[365327539,1749601843400,-153.0,0.00023035,2]
[365327540,1749601843410,-153.0,0.00023035,2]
[365327543,1749601843420,-153.0,0.00023035,2]
[365327544,1749601843430,-153.0,0.00023035,2]
[365327547,1749601843440,-153.0,0.00023035,2]
[365327548,1749601843449,-153.0,0.00023035,2]
[365327551,1749601843459,-153.0,0.00023035,2]
[365327552,1749601843468,-153.0,0.00023035,2]
[365327554,1749601843477,-153.0,0.00023035,2]
[365327556,1749601843486,-153.0,0.00023035,2]
[365327559,1749601843497,-153.0,0.00023035,2]
[365327561,1749601843507,-153.0,0.00023035,2]
[365327562,1749601843516,-153.0,0.00023035,2]
[365327564,1749601843527,-153.0,0.00023035,2]
[365327567,1749601843536,-153.0,0.00023035,2]
[365327568,1749601843545,-153.0,0.00023035,2]
[365327570,1749601843554,-153.0,0.00023035,2]
[365327572,1749601843564,-153.0,0.00023035,2]
[365327574,1749601843573,-153.0,0.00023035,2]
[365327576,1749601843582,-153.0,0.00023035,2]
[365327578,1749601843592,-153.0,0.00023035,2]
[365327580,1749601843601,-153.0,0.00023035,2]
[365327582,1749601843610,-153.0,0.00023035,2]
[365327584,1749601843621,-153.0,0.00023035,2]
[365327586,1749601843631,-153.0,0.00023035,2]
[365327588,1749601843640,-153.0,0.00023035,2]
[365327599,1749601843731,-153.0,0.00023035,2]
[365327601,1749601843740,-153.0,0.00023035,2]
[365327603,1749601843749,-153.0,0.00023035,2]
[365327605,1749601843759,-153.0,0.00023035,2]
[365327607,1749601843771,-153.0,0.00023035,2]
[365327609,1749601843780,-153.0,0.00023035,2]
[365327611,1749601843789,-153.0,0.00023035,2]
[365327614,1749601843799,-153.0,0.00023035,2]
[365327617,1749601843808,-153.0,0.00023035,2]
[365327619,1749601843818,-153.0,0.00023035,2]
[365327621,1749601843827,-153.0,0.00023035,2]
[365327623,1749601843836,-153.0,0.00023035,2]
[365327625,1749601843846,-153.0,0.00023035,2]
[365327627,1749601843856,-153.0,0.00023035,2]
[365327629,1749601843866,-153.0,0.00023035,2]
[365327631,1749601843875,-153.0,0.00023035,2]
[365327633,1749601843884,-153.0,0.00023035,2]
[365327635,1749601843893,-153.0,0.00023035,2]
[365327636,1749601843902,-153.0,0.00023035,2]
[365327639,1749601843912,-153.0,0.00023035,2]
[365327641,1749601843922,-153.0,0.00023035,2]
[365327642,1749601843931,-153.0,0.00023035,2]
[365327644,1749601843941,-153.0,0.00023035,2]
[365327647,1749601843950,-153.0,0.00023035,2]
[365327648,1749601843959,-153.0,0.00023035,2]
[365327650,1749601843968,-153.0,0.00023035,2]
[365327652,1749601843978,-153.0,0.00023035,2]
[365327654,1749601843987,-153.0,0.00023035,2]
[365327656,1749601843996,-153.0,0.00023035,2]
[365327658,1749601844005,-153.0,0.00023035,2]
[365327660,1749601844014,-153.0,0.00023035,2]
[365327662,1749601844024,-153.0,0.00023035,2]
[365327664,1749601844033,-153.0,0.00023035,2]
[365327666,1749601844042,-153.0,0.00023035,2]
[365327669,1749601844052,-153.0,0.00023035,2]
[365327670,1749601844061,-153.0,0.00023035,2]
[365327673,1749601844070,-153.0,0.00023035,2]
[365327674,1749601844079,-153.0,0.00023035,2]
[365327676,1749601844089,-153.0,0.00023035,2]
[365327678,1749601844098,-153.0,0.00023035,2]
[365327680,1749601844107,-153.0,0.00023035,2]
[365327682,1749601844116,-153.0,0.00023035,2]
[365327685,1749601844126,-153.0,0.00023035,2]
[365327686,1749601844135,-153.0,0.00023035,2]
[365327688,1749601844145,-153.0,0.00023035,2]
[365327690,1749601844154,-153.0,0.00023035,2]
[365327692,1749601844164,-153.0,0.00023035,2]
[365327694,1749601844173,-153.0,0.00023035,2]
[365327696,1749601844182,-153.0,0.00023035,2]
[365327698,1749601844191,-153.0,0.00023035,2]
[365327700,1749601844200,-153.0,0.00023035,2]
[365327702,1749601844210,-153.0,0.00023035,2]
[365327704,1749601844219,-153.0,0.00023035,2]
[365327706,1749601844228,-2459.52304013,0.00023038,8]
[365327708,1749601844237,-159.45410384,0.00023114,2]
[365327710,1749601844246,-2459.52304013,0.00023141,8]
[365327712,1749601844255,-151.0,0.00023147,2]
[365327714,1749601844265,-5000.0,0.00023147,2]
[365327716,1749601844275,-352.94100457,0.00023185,2]
[365327718,1749601844284,-500.0,0.00023185,2]
[365327720,1749601844294,-500.0,0.00023185,2]
[365327722,1749601844303,-500.0,0.00023185,2]
[365327725,1749601844313,-500.0,0.00023194,2]
[365327727,1749601844323,-1931.37,0.000232,7]
[365327729,1749601844333,-68361.7,0.000232,7]
[365327731,1749601844342,-2459.52304013,0.00023245,8]
[365327733,1749601844351,-500.0,0.00023256,2]
[365327735,1749601844361,-2902.83285435,0.00023286,2]
[365327737,1749601844372,-500.0,0.00023286,2]
[365327739,1749601844381,-2902.83285435,0.00023286,2]
[365327741,1749601844391,-2902.83285435,0.00023286,2]
[365327743,1749601844400,-500.0,0.00023286,2]
[365327745,1749601844410,-2902.83285435,0.00023286,2]
[365327747,1749601844419,-500.0,0.00023286,2]
[365327749,1749601844428,-2902.83285435,0.00023286,2]
[365327751,1749601844438,-2902.83285435,0.00023286,2]
[365327753,1749601844447,-2902.83285435,0.00023286,2]
[365327755,1749601844456,-2902.83285435,0.00023286,2]
[365327757,1749601844466,-500.0,0.00023286,2]
[365327759,1749601844476,-2902.83285435,0.00023286,2]
[365327761,1749601844486,-252.45311965,0.00023286,2]
[365327763,1749601844495,-2902.83285435,0.00023286,2]
[365327765,1749601844504,-2902.83285435,0.00023286,2]
[365327767,1749601844513,-500.0,0.00023286,2]
[365327769,1749601844522,-2902.83285435,0.00023286,2]
[365327771,1749601844531,-2902.83285435,0.00023286,2]
[365327773,1749601844540,-2902.83285435,0.00023286,2]
[365327775,1749601844549,-2902.83285435,0.00023286,2]
[365327777,1749601844558,-2902.83285435,0.00023286,2]
[365327779,1749601844567,-2902.83285435,0.00023286,2]
[365327781,1749601844577,-400.0,0.00023287,4]
[365327783,1749601844587,-777.78,0.00023287,4]
[365327785,1749601844596,-1279.38,0.00023287,4]
[365327787,1749601844606,-460.0,0.00023287,4]
[365327789,1749601844617,-396.24,0.00023287,4]
[365327791,1749601844626,-561.82,0.00023287,4]
[365327793,1749601844636,-471.87,0.00023287,4]
[365327794,1749601844645,-460.0,0.00023287,4]
[365327797,1749601844655,-460.0,0.00023287,4]
[365327799,1749601844665,-1754.9,0.00023287,4]
[365327801,1749601844674,-795.12,0.00023287,4]
[365327803,1749601844684,-460.0,0.00023287,4]
[365327805,1749601844694,-1154.14,0.00023287,4]
[365327807,1749601844703,-460.0,0.00023287,2]
[365327809,1749601844713,-608.56,0.00023287,4]
[365327811,1749601844722,-843.33,0.00023287,4]
[365327813,1749601844731,-460.0,0.00023287,4]
[365327815,1749601844740,-2182.91,0.00023287,4]
[365327817,1749601844749,-770.48,0.00023287,4]
[365327819,1749601844763,-1610.56,0.00023287,4]
[365327821,1749601844772,-400.0,0.00023287,4]
[365327823,1749601844782,-980.87,0.00023287,4]
[365327825,1749601844791,-380.0,0.00023287,4]
[365327827,1749601844801,-460.0,0.00023287,4]
[365327829,1749601844811,-460.0,0.00023287,4]
[365327831,1749601844821,-460.0,0.00023287,4]
[365327833,1749601844830,-1582.06,0.00023287,4]
[365327835,1749601844841,-801.08,0.00023287,4]
[365327837,1749601844850,-971.12,0.00023287,4]
[365327839,1749601844860,-1965.67,0.00023287,4]
[365327841,1749601844875,-460.0,0.00023287,4]
[365327843,1749601844886,-2017.9,0.00023287,4]
[365327845,1749601844899,-644.13,0.00023287,4]
[365327847,1749601844909,-151.0,0.000233,7]
[365327849,1749601844919,-685.45,0.000233,7]
[365327851,1749601844929,-1000.0,0.00023348,2]
[365327853,1749601844938,-1200.0,0.00023348,2]
[365327855,1749601844948,-2459.52304013,0.00023348,9]
[365327857,1749601844958,-151.0,0.000234,8]
[365327859,1749601844969,-2459.52304013,0.00023452,9]
[365327861,1749601844978,-2459.52304013,0.00023555,9]
[365327864,1749601844989,-400.0,0.00023561,4]
[365327866,1749601844999,-777.78,0.00023561,4]
[365327867,1749601845009,-1279.38,0.00023561,4]
[365327870,1749601845019,-460.0,0.00023561,4]
[365327872,1749601845028,-561.82,0.00023561,4]
[365327873,1749601845037,-471.87,0.00023561,4]
[365327875,1749601845046,-463.28,0.00023561,4]
[365327878,1749601845056,-460.0,0.00023561,4]
[365327879,1749601845066,-1754.9,0.00023561,4]
[365327881,1749601845075,-795.12,0.00023561,4]
[365327883,1749601845085,-460.0,0.00023561,4]
[365327885,1749601845095,-1154.14,0.00023561,4]
[365327887,1749601845104,-168.1417678,0.00023561,2]
[365327890,1749601845115,-608.56,0.00023561,4]
[365327891,1749601845126,-843.33,0.00023561,4]
[365327893,1749601845135,-408.23490726,0.00023561,4]
[365327895,1749601845145,-2182.91,0.00023561,4]
[365327897,1749601845154,-770.48,0.00023561,4]
[365327899,1749601845164,-1610.56,0.00023561,4]
[365327901,1749601845173,-980.87,0.00023561,4]
[365327903,1749601845183,-460.0,0.00023561,4]
[365327905,1749601845192,-460.0,0.00023561,4]
[365327907,1749601845202,-385.31,0.00023561,4]
[365327909,1749601845212,-1582.06,0.00023561,4]
[365327911,1749601845222,-801.08,0.00023561,4]
[365327914,1749601845231,-971.12,0.00023561,4]
[365327916,1749601845240,-1965.67,0.00023561,4]
[365327918,1749601845250,-460.0,0.00023561,4]
[365327920,1749601845259,-2017.9,0.00023561,4]
[365327922,1749601845268,-644.13,0.00023561,4]
[365327924,1749601845277,-151.0,0.000236,9]
[365327926,1749601845287,-5427.0,0.00023613,7]
[365327928,1749601845296,-2459.52304013,0.00023659,9]
[365327930,1749601845305,-5000.0,0.00023695,2]
[365327932,1749601845315,-151.0,0.000237,8]
[365327934,1749601845324,-1000.0,0.00023733,2]
[365327936,1749601845333,-1000.0,0.00023733,2]
[365327938,1749601845343,-1001.49859335,0.00023733,2]
[365327940,1749601845353,-500.0,0.00023742,2]
[365327942,1749601845362,-2459.52304013,0.00023762,9]
[365327944,1749601845373,-200.0,0.0002378,2]
[365327946,1749601845382,-122117.24184415,0.00023799,2]
[365327948,1749601845391,-151.0,0.00023799,7]
[365327950,1749601845401,-151.0,0.00023799,7]
[365327952,1749601845410,-151.0,0.00023799,7]
[365327954,1749601845419,-151.0,0.00023799,7]
[365327956,1749601845429,-151.0,0.00023799,7]
[365327958,1749601845438,-151.0,0.00023799,7]
[365327960,1749601845447,-151.0,0.00023799,7]
[365327962,1749601845456,-317.41,0.00023834,2]
[365327964,1749601845465,-400.0,0.00023835,4]
[365327966,1749601845475,-777.78,0.00023835,4]
[365327968,1749601845484,-1279.38,0.00023835,4]
[365327970,1749601845494,-460.0,0.00023835,4]
[365327972,1749601845503,-561.82,0.00023835,4]
[365327974,1749601845513,-471.87,0.00023835,4]
[365327976,1749601845522,-460.0,0.00023835,4]
[365327978,1749601845531,-1754.9,0.00023835,4]
[365327980,1749601845540,-795.12,0.00023835,4]
[365327982,1749601845549,-460.0,0.00023835,4]
[365327984,1749601845558,-1154.14,0.00023835,4]
[365327986,1749601845568,-608.56,0.00023835,4]
[365327997,1749601845657,-843.33,0.00023835,4]
[365327999,1749601845667,-2182.91,0.00023835,4]
[365328001,1749601845677,-770.48,0.00023835,4]
[365328003,1749601845685,-1610.56,0.00023835,4]
[365328005,1749601845695,-980.87,0.00023835,4]
[365328007,1749601845704,-460.0,0.00023835,4]
[365328009,1749601845714,-460.0,0.00023835,4]
[365328011,1749601845723,-1582.06,0.00023835,4]
[365328013,1749601845732,-801.08,0.00023835,4]
[365328015,1749601845742,-971.12,0.00023835,4]
[365328017,1749601845751,-1965.67,0.00023835,4]
[365328019,1749601845761,-414.83410121,0.00023835,4]
[365328021,1749601845774,-2017.9,0.00023835,4]
[365328023,1749601845783,-644.13,0.00023835,4]
[365328025,1749601845793,-87544.97,0.00023857,11]
[365328027,1749601845802,-2459.52304013,0.00023866,10]
[365328029,1749601845811,-167.70861884,0.00023868,2]
[365328031,1749601845820,-1500.0,0.00023896,2]
[365328033,1749601845829,-1800.0,0.00023896,2]
[365328035,1749601845838,-151.0,0.000239,7]
[365328037,1749601845848,-159.45410384,0.000239,2]
[365328039,1749601845858,-2569.33,0.00023901,2]
[365328041,1749601845868,-215.0738,0.00023968,2]
[365328043,1749601845878,-2459.52304013,0.00023969,10]
[365328045,1749601845888,-729.9949474,0.00023973,2]
[365328047,1749601845899,-158.29,0.00024,2]
[365328049,1749601845909,-364.9974737,0.00024,2]
[365328051,1749601845919,-160.0,0.00024,7]
[365328053,1749601845929,-229.6792923,0.00024,7]
[365328055,1749601845939,-424.12530924,0.00024,7]
[365328057,1749601845949,-364.9974737,0.00024,2]
[365328059,1749601845958,-19000.0,0.00024,3]
[365328061,1749601845969,-364.9974737,0.00024,2]
[365328063,1749601845979,-834.9046531,0.00024,7]
[365328065,1749601845989,-364.9974737,0.00024,2]
[365328067,1749601845998,-343.8974117,0.00024,2]